[Event "Late Titled Tuesday Blitz February 8 2022"]
[White "Ishbaev, Alibek"]
[Black "Burke, Paul"]
[WhiteFideId "14205017"]
[BlackFideId "2605767"]
[WhiteElo "2373"]
[BlackElo "1823"]
[Result "1-0"]
[Round "05"]
[TimeControl "180+1"]
[Date "2022.02.09"]
[WhiteClock "0:01:26"]
[BlackClock "0:00:08"]

1. c4 {[%clk 0:03:00]}  a6 {[%clk 0:02:59]} 2. e4 {[%clk 0:03:00]}  d6 {[%clk 0:02:58]} 3. Nc3 {[%clk 0:03:00]}  g6 {[%clk 0:02:57]} 4. g3 {[%clk 0:02:59]}  Nd7 {[%clk 0:02:57]} 5. Bg2 {[%clk 0:03:00]}  Bg7 {[%clk 0:02:57]} 6. Nge2 {[%clk 0:03:01]}  e6 {[%clk 0:02:57]} 7. O-O {[%clk 0:03:02]}  h6 {[%clk 0:02:58]} 8. d3 {[%clk 0:03:03]}  Ne7 {[%clk 0:02:58]} 9. Be3 {[%clk 0:03:03]}  O-O {[%clk 0:02:56]} 10. Qd2 {[%clk 0:03:04]}  Kh7 {[%clk 0:02:56]} 11. f4 {[%clk 0:03:05]}  f5 {[%clk 0:02:52]} 12. Rae1 {[%clk 0:03:03]}  Rb8 {[%clk 0:02:44]} 13. b3 {[%clk 0:03:04]}  b5 {[%clk 0:02:42]} 14. h3 {[%clk 0:03:01]}  b4 {[%clk 0:02:40]} 15. Nd1 {[%clk 0:03:00]}  c5 {[%clk 0:02:38]} 16. Kh2 {[%clk 0:03:00]}  Bb7 {[%clk 0:02:34]} 17. exf5 {[%clk 0:02:58]}  Nxf5 {[%clk 0:02:34]} 18. Bf2 {[%clk 0:02:58]}  Bxg2 {[%clk 0:02:28]} 19. Kxg2 {[%clk 0:02:59]}  Nf6 {[%clk 0:02:19]} 20. Ne3 {[%clk 0:02:57]}  Nd4 {[%clk 0:02:08]} 21. Nxd4 {[%clk 0:02:55]}  cxd4 {[%clk 0:02:08]} 22. Ng4 {[%clk 0:02:55]}  Nxg4 {[%clk 0:02:07]} 23. hxg4 {[%clk 0:02:56]}  e5 {[%clk 0:02:06]} 24. Bg1 {[%clk 0:02:43]}  Qc8 {[%clk 0:02:03]} 25. Qe2 {[%clk 0:02:40]}  Qb7+ {[%clk 0:01:46]} 26. Qe4 {[%clk 0:02:37]}  Qd7 {[%clk 0:01:33]} 27. f5 {[%clk 0:02:36]}  gxf5 {[%clk 0:01:25]} 28. Rxf5 {[%clk 0:02:35]}  Rxf5 {[%clk 0:01:25]} 29. gxf5 {[%clk 0:02:36]}  Bf6 {[%clk 0:01:22]} 30. g4 {[%clk 0:02:29]}  Qg7 {[%clk 0:01:22]} 31. Kh3 {[%clk 0:02:16]}  Rg8 {[%clk 0:01:16]} 32. Bf2 {[%clk 0:02:15]}  Qg5 {[%clk 0:01:00]} 33. Qb7+ {[%clk 0:01:32]}  Rg7 {[%clk 0:01:00]} 34. Qf3 {[%clk 0:01:33]}  a5 {[%clk 0:00:33]} 35. Rg1 {[%clk 0:01:31]}  Qd2 {[%clk 0:00:31]} 36. Rg2 {[%clk 0:01:25]}  Qxa2 {[%clk 0:00:26]} 37. Bh4 {[%clk 0:01:25]}  Qxb3 {[%clk 0:00:14]} 38. Bxf6 {[%clk 0:01:25]}  Rf7 {[%clk 0:00:14]} 39. g5 {[%clk 0:01:25]}  hxg5 {[%clk 0:00:10]} 40. Qh5+ {[%clk 0:01:25]}  Kg8 {[%clk 0:00:08]} 41. Qh8# {[%clk 0:01:26]} 1-0


[Site "https://www.chess.com"]

[Event "Late Titled Tuesday Blitz February 8 2022"]
[White "Jaferian, Koosha"]
[Black "Garagulya, Konstantin"]
[WhiteFideId "12507440"]
[BlackFideId "4128931"]
[WhiteElo "2027"]
[BlackElo "2329"]
[Result "0-1"]
[Round "05"]
[TimeControl "180+1"]
[Date "2022.02.09"]
[WhiteClock "0:00:07"]
[BlackClock "0:00:07"]

1. e4 {[%clk 0:03:00]}  c5 {[%clk 0:02:56]} 2. Nc3 {[%clk 0:02:59]}  a6 {[%clk 0:02:56]} 3. g3 {[%clk 0:02:56]}  b5 {[%clk 0:02:56]} 4. Bg2 {[%clk 0:02:56]}  Bb7 {[%clk 0:02:57]} 5. d3 {[%clk 0:02:57]}  e6 {[%clk 0:02:58]} 6. Nh3 {[%clk 0:02:57]}  d5 {[%clk 0:02:57]} 7. exd5 {[%clk 0:02:56]}  Nf6 {[%clk 0:02:55]} 8. Bg5 {[%clk 0:02:50]}  b4 {[%clk 0:02:52]} 9. Ne4 {[%clk 0:02:43]}  Bxd5 {[%clk 0:02:50]} 10. Nf4 {[%clk 0:02:34]}  Bc6 {[%clk 0:02:18]} 11. Nh5 {[%clk 0:02:10]}  Bxe4 {[%clk 0:02:05]} 12. Bxe4 {[%clk 0:02:06]}  Ra7 {[%clk 0:02:03]} 13. Qf3 {[%clk 0:02:01]}  Nbd7 {[%clk 0:02:03]} 14. Bc6 {[%clk 0:01:53]}  Be7 {[%clk 0:01:09]} 15. Nxg7+ {[%clk 0:01:53]}  Kf8 {[%clk 0:01:10]} 16. Bh6 {[%clk 0:01:40]}  Kg8 {[%clk 0:01:07]} 17. Bxd7 {[%clk 0:01:30]}  Rxd7 {[%clk 0:01:02]} 18. Nh5 {[%clk 0:01:31]}  Rd4 {[%clk 0:00:48]} 19. Bg7 {[%clk 0:01:16]}  Nxh5 {[%clk 0:00:43]} 20. Bxd4 {[%clk 0:01:05]}  Qxd4 {[%clk 0:00:39]} 21. Qxh5 {[%clk 0:01:05]}  Qxb2 {[%clk 0:00:39]} 22. O-O {[%clk 0:01:03]}  Qxc2 {[%clk 0:00:38]} 23. Qf3 {[%clk 0:00:46]}  Kg7 {[%clk 0:00:32]} 24. Rfc1 {[%clk 0:00:46]}  Qb2 {[%clk 0:00:32]} 25. Qg4+ {[%clk 0:00:43]}  Kf8 {[%clk 0:00:31]} 26. Qc4 {[%clk 0:00:36]}  h5 {[%clk 0:00:26]} 27. h4 {[%clk 0:00:32]}  Kg7 {[%clk 0:00:23]} 28. Qxa6 {[%clk 0:00:27]}  Bf6 {[%clk 0:00:20]} 29. Qc4 {[%clk 0:00:20]}  Bd4 {[%clk 0:00:17]} 30. Rf1 {[%clk 0:00:18]}  Bxf2+ {[%clk 0:00:15]} 31. Kg2 {[%clk 0:00:15]}  Bd4+ {[%clk 0:00:14]} 32. Kh3 {[%clk 0:00:16]}  Ra8 {[%clk 0:00:10]} 33. Qc1 {[%clk 0:00:14]}  Qe2 {[%clk 0:00:09]} 34. Qg5+ {[%clk 0:00:14]}  Kf8 {[%clk 0:00:10]} 35. Rae1 {[%clk 0:00:10]}  Qxd3 {[%clk 0:00:08]} 36. Rxe6 {[%clk 0:00:07]}  Qxf1+ {[%clk 0:00:07]} 0-1


[Site "https://www.chess.com"]

[Event "Late Titled Tuesday Blitz February 8 2022"]
[White "Jaskolka, Tomasz"]
[Black "Zhurbinsky, David"]
[WhiteFideId "1170791"]
[BlackFideId "2072904"]
[WhiteElo "2054"]
[BlackElo "2558"]
[Result "1/2-1/2"]
[Round "05"]
[TimeControl "180+1"]
[Date "2022.02.09"]
[WhiteClock "0:00:05"]
[BlackClock "0:00:09"]

1. e4 {[%clk 0:02:56]}  e5 {[%clk 0:02:59]} 2. Nf3 {[%clk 0:02:55]}  Nc6 {[%clk 0:03:00]} 3. Bb5 {[%clk 0:02:55]}  a6 {[%clk 0:03:00]} 4. Ba4 {[%clk 0:02:55]}  Nf6 {[%clk 0:03:01]} 5. O-O {[%clk 0:02:55]}  Be7 {[%clk 0:02:59]} 6. Re1 {[%clk 0:02:49]}  b5 {[%clk 0:03:00]} 7. Bb3 {[%clk 0:02:49]}  O-O {[%clk 0:03:00]} 8. d3 {[%clk 0:02:49]}  Bb7 {[%clk 0:02:59]} 9. a4 {[%clk 0:02:49]}  b4 {[%clk 0:02:56]} 10. Nbd2 {[%clk 0:02:41]}  d5 {[%clk 0:02:56]} 11. exd5 {[%clk 0:02:41]}  Nxd5 {[%clk 0:02:57]} 12. Nc4 {[%clk 0:02:39]}  Bd6 {[%clk 0:02:23]} 13. Bg5 {[%clk 0:02:22]}  Qd7 {[%clk 0:02:11]} 14. Qd2 {[%clk 0:02:04]}  Rae8 {[%clk 0:02:01]} 15. c3 {[%clk 0:01:50]}  Kh8 {[%clk 0:01:50]} 16. Nxd6 {[%clk 0:01:39]}  Qxd6 {[%clk 0:01:49]} 17. d4 {[%clk 0:01:38]}  bxc3 {[%clk 0:01:35]} 18. bxc3 {[%clk 0:01:38]}  e4 {[%clk 0:01:11]} 19. Nh4 {[%clk 0:00:58]}  f5 {[%clk 0:01:11]} 20. c4 {[%clk 0:00:52]}  Ndb4 {[%clk 0:00:55]} 21. d5 {[%clk 0:00:49]}  Ne5 {[%clk 0:00:53]} 22. Bf4 {[%clk 0:00:48]}  Nbd3 {[%clk 0:00:52]} 23. Bxe5 {[%clk 0:00:17]}  Qxe5 {[%clk 0:00:47]} 24. Rf1 {[%clk 0:00:16]}  f4 {[%clk 0:00:40]} 25. g3 {[%clk 0:00:16]}  f3 {[%clk 0:00:27]} 26. Bc2 {[%clk 0:00:16]}  Nc5 {[%clk 0:00:24]} 27. Qe3 {[%clk 0:00:13]}  Nd7 {[%clk 0:00:20]} 28. Rfe1 {[%clk 0:00:11]}  g5 {[%clk 0:00:09]} 29. Qxe4 {[%clk 0:00:03]}  Qxe4 {[%clk 0:00:10]} 30. Rxe4 {[%clk 0:00:03]}  Rxe4 {[%clk 0:00:07]} 31. Bxe4 {[%clk 0:00:04]}  gxh4 {[%clk 0:00:08]} 32. Rb1 {[%clk 0:00:05]}  Nc5 {[%clk 0:00:08]} 33. Bc2 {[%clk 0:00:04]}  hxg3 {[%clk 0:00:08]} 34. hxg3 {[%clk 0:00:05]}  h5 {[%clk 0:00:08]} 35. Kh2 {[%clk 0:00:03]}  h4 {[%clk 0:00:08]} 36. gxh4 {[%clk 0:00:04]}  Rf4 {[%clk 0:00:09]} 37. Kg3 {[%clk 0:00:04]}  Rxc4 {[%clk 0:00:09]} 38. Bd3 {[%clk 0:00:02]}  Rxa4 {[%clk 0:00:07]} 39. Bf5 {[%clk 0:00:01]}  Bxd5 {[%clk 0:00:07]} 40. h5 {[%clk 0:00:02]}  Kg7 {[%clk 0:00:07]} 41. Rc1 {[%clk 0:00:01]}  Rc4 {[%clk 0:00:06]} 42. Rd1 {[%clk 0:00:01]}  Bf7 {[%clk 0:00:03]} 43. Rg1 {[%clk 0:00:02]}  Kf6 {[%clk 0:00:03]} 44. Bb1 {[%clk 0:00:01]}  Be6 {[%clk 0:00:02]} 45. Kxf3 {[%clk 0:00:01]}  Bd5+ {[%clk 0:00:03]} 46. Ke3 {[%clk 0:00:01]}  Rb4 {[%clk 0:00:03]} 47. Bc2 {[%clk 0:00:01]}  Rc4 {[%clk 0:00:03]} 48. Rg6+ {[%clk 0:00:02]}  Kf7 {[%clk 0:00:03]} 49. Bd3 {[%clk 0:00:02]}  Rc3 {[%clk 0:00:04]} 50. Kd4 {[%clk 0:00:02]}  Rxd3+ {[%clk 0:00:04]} 51. Kxc5 {[%clk 0:00:03]}  Be4 {[%clk 0:00:05]} 52. Rxa6 {[%clk 0:00:03]}  Rd5+ {[%clk 0:00:05]} 53. Kc4 {[%clk 0:00:03]}  Rxh5 {[%clk 0:00:06]} 54. Ra7 {[%clk 0:00:03]}  Bd5+ {[%clk 0:00:04]} 55. Kd4 {[%clk 0:00:03]}  Ke6 {[%clk 0:00:04]} 56. Rxc7 {[%clk 0:00:03]}  Rh4+ {[%clk 0:00:05]} 57. Ke3 {[%clk 0:00:03]}  Kd6 {[%clk 0:00:05]} 58. Rg7 {[%clk 0:00:03]}  Re4+ {[%clk 0:00:05]} 59. Kd3 {[%clk 0:00:03]}  Kc5 {[%clk 0:00:05]} 60. Rg5 {[%clk 0:00:03]}  Rd4+ {[%clk 0:00:05]} 61. Ke3 {[%clk 0:00:03]}  Kc4 {[%clk 0:00:05]} 62. f3 {[%clk 0:00:03]}  Rd3+ {[%clk 0:00:05]} 63. Kf2 {[%clk 0:00:03]}  Rxf3+ {[%clk 0:00:05]} 64. Ke2 {[%clk 0:00:03]}  Rh3 {[%clk 0:00:05]} 65. Kf2 {[%clk 0:00:02]}  Kd4 {[%clk 0:00:04]} 66. Rg4+ {[%clk 0:00:03]}  Be4 {[%clk 0:00:05]} 67. Rg7 {[%clk 0:00:02]}  Rf3+ {[%clk 0:00:05]} 68. Ke2 {[%clk 0:00:03]}  Ra3 {[%clk 0:00:06]} 69. Rd7+ {[%clk 0:00:03]}  Bd5 {[%clk 0:00:06]} 70. Kf2 {[%clk 0:00:02]}  Ra2+ {[%clk 0:00:07]} 71. Kg3 {[%clk 0:00:02]}  Rg2+ {[%clk 0:00:06]} 72. Kf4 {[%clk 0:00:02]}  Rf2+ {[%clk 0:00:07]} 73. Kg3 {[%clk 0:00:03]}  Rf3+ {[%clk 0:00:06]} 74. Kg4 {[%clk 0:00:04]}  Rf1 {[%clk 0:00:04]} 75. Rd8 {[%clk 0:00:04]}  Ke5 {[%clk 0:00:04]} 76. Re8+ {[%clk 0:00:04]}  Be6+ {[%clk 0:00:04]} 77. Kg3 {[%clk 0:00:05]}  Rf6 {[%clk 0:00:01]} 78. Kg2 {[%clk 0:00:05]}  Rg6+ {[%clk 0:00:01]} 79. Kf3 {[%clk 0:00:05]}  Rf6+ {[%clk 0:00:02]} 80. Ke3 {[%clk 0:00:06]}  Kf5 {[%clk 0:00:02]} 81. Kf3 {[%clk 0:00:05]}  Rh6 {[%clk 0:00:03]} 82. Rf8+ {[%clk 0:00:05]}  Ke5 {[%clk 0:00:03]} 83. Ke3 {[%clk 0:00:05]}  Rh3+ {[%clk 0:00:03]} 84. Rf3 {[%clk 0:00:05]}  Rh4 {[%clk 0:00:04]} 85. Rf8 {[%clk 0:00:05]}  Rh3+ {[%clk 0:00:04]} 86. Rf3 {[%clk 0:00:04]}  Rh1 {[%clk 0:00:05]} 87. Rf8 {[%clk 0:00:04]}  Ra1 {[%clk 0:00:04]} 88. Kd2 {[%clk 0:00:05]}  Ra3 {[%clk 0:00:04]} 89. Ke2 {[%clk 0:00:04]}  Bc4+ {[%clk 0:00:04]} 90. Kd2 {[%clk 0:00:05]}  Kd4 {[%clk 0:00:05]} 91. Rf4+ {[%clk 0:00:04]}  Kc5 {[%clk 0:00:04]} 92. Rf5+ {[%clk 0:00:05]}  Bd5 {[%clk 0:00:05]} 93. Rg5 {[%clk 0:00:05]}  Kd4 {[%clk 0:00:06]} 94. Rg4+ {[%clk 0:00:05]}  Be4 {[%clk 0:00:06]} 95. Rf4 {[%clk 0:00:05]}  Ra2+ {[%clk 0:00:07]} 96. Kc1 {[%clk 0:00:05]}  Ke3 {[%clk 0:00:08]} 97. Rh4 {[%clk 0:00:04]}  Ra4 {[%clk 0:00:07]} 98. Rh3+ {[%clk 0:00:04]}  Kd4 {[%clk 0:00:08]} 99. Kb2 {[%clk 0:00:05]}  Kc4 {[%clk 0:00:06]} 100. Rc3+ {[%clk 0:00:05]}  Kd4 {[%clk 0:00:06]} 101. Rh3 {[%clk 0:00:05]}  Rb4+ {[%clk 0:00:06]} 102. Ka3 {[%clk 0:00:06]}  Kc4 {[%clk 0:00:05]} 103. Rh4 {[%clk 0:00:06]}  Kc3 {[%clk 0:00:05]} 104. Rh3+ {[%clk 0:00:05]}  Kc4 {[%clk 0:00:05]} 105. Rh4 {[%clk 0:00:05]}  Rb3+ {[%clk 0:00:06]} 106. Ka4 {[%clk 0:00:06]}  Re3 {[%clk 0:00:05]} 107. Ka5 {[%clk 0:00:05]}  Ra3+ {[%clk 0:00:04]} 108. Kb6 {[%clk 0:00:05]}  Rb3+ {[%clk 0:00:05]} 109. Kc7 {[%clk 0:00:06]}  Kd4 {[%clk 0:00:06]} 110. Kd6 {[%clk 0:00:06]}  Rb7 {[%clk 0:00:07]} 111. Rh5 {[%clk 0:00:05]}  Rb6+ {[%clk 0:00:07]} 112. Kd7 {[%clk 0:00:05]}  Bd5 {[%clk 0:00:08]} 113. Kc7 {[%clk 0:00:05]}  Kc5 {[%clk 0:00:09]} 1/2-1/2


[Site "https://www.chess.com"]

[Event "Late Titled Tuesday Blitz February 8 2022"]
[White "Jones, Gawain C B"]
[Black "Gomez Ledo, Roberto Carlos"]
[WhiteFideId "409561"]
[BlackFideId "3507076"]
[WhiteElo "2657"]
[BlackElo "2379"]
[Result "1/2-1/2"]
[Round "05"]
[TimeControl "180+1"]
[Date "2022.02.08"]
[WhiteClock "0:00:20"]
[BlackClock "0:00:13"]

1. Nf3 {[%clk 0:03:00]}  Nf6 {[%clk 0:02:56]} 2. g3 {[%clk 0:03:01]}  d5 {[%clk 0:02:55]} 3. Bg2 {[%clk 0:03:01]}  e6 {[%clk 0:02:55]} 4. O-O {[%clk 0:03:01]}  Be7 {[%clk 0:02:54]} 5. d3 {[%clk 0:03:01]}  O-O {[%clk 0:02:53]} 6. Nbd2 {[%clk 0:03:01]}  Nc6 {[%clk 0:02:53]} 7. e4 {[%clk 0:03:01]}  dxe4 {[%clk 0:02:52]} 8. dxe4 {[%clk 0:03:01]}  e5 {[%clk 0:02:52]} 9. Nc4 {[%clk 0:03:00]}  Bd6 {[%clk 0:02:32]} 10. Bg5 {[%clk 0:02:56]}  h6 {[%clk 0:02:29]} 11. Bxf6 {[%clk 0:02:56]}  Qxf6 {[%clk 0:02:30]} 12. c3 {[%clk 0:02:51]}  Rd8 {[%clk 0:02:24]} 13. Qe2 {[%clk 0:02:44]}  Bf8 {[%clk 0:02:20]} 14. b4 {[%clk 0:02:36]}  a6 {[%clk 0:02:12]} 15. a4 {[%clk 0:02:36]}  Bg4 {[%clk 0:02:00]} 16. Ne3 {[%clk 0:02:31]}  Be6 {[%clk 0:01:53]} 17. b5 {[%clk 0:02:28]}  Na5 {[%clk 0:01:50]} 18. Nd2 {[%clk 0:02:14]}  Rxd2 {[%clk 0:01:28]} 19. Qxd2 {[%clk 0:02:13]}  Nb3 {[%clk 0:01:28]} 20. Qb2 {[%clk 0:02:06]}  Nxa1 {[%clk 0:01:27]} 21. Rxa1 {[%clk 0:02:07]}  axb5 {[%clk 0:01:23]} 22. axb5 {[%clk 0:02:06]}  Rxa1+ {[%clk 0:01:05]} 23. Qxa1 {[%clk 0:02:06]}  Qd8 {[%clk 0:01:04]} 24. Nd5 {[%clk 0:01:49]}  Bxd5 {[%clk 0:00:58]} 25. exd5 {[%clk 0:01:48]}  b6 {[%clk 0:00:59]} 26. c4 {[%clk 0:01:46]}  Bd6 {[%clk 0:00:57]} 27. Be4 {[%clk 0:01:42]}  g6 {[%clk 0:00:56]} 28. Qc1 {[%clk 0:01:30]}  Kg7 {[%clk 0:00:55]} 29. Bc2 {[%clk 0:01:22]}  Qf6 {[%clk 0:00:52]} 30. Kg2 {[%clk 0:01:18]}  Bc5 {[%clk 0:00:52]} 31. Qe1 {[%clk 0:01:15]}  Bd4 {[%clk 0:00:50]} 32. h4 {[%clk 0:01:11]}  h5 {[%clk 0:00:49]} 33. Qe2 {[%clk 0:01:02]}  Qd6 {[%clk 0:00:47]} 34. g4 {[%clk 0:00:52]}  hxg4 {[%clk 0:00:43]} 35. Qxg4 {[%clk 0:00:52]}  Qf6 {[%clk 0:00:43]} 36. Qg3 {[%clk 0:00:39]}  Kh6 {[%clk 0:00:30]} 37. Be4 {[%clk 0:00:38]}  Bc5 {[%clk 0:00:26]} 38. Kf1 {[%clk 0:00:32]}  Bd4 {[%clk 0:00:25]} 39. Ke2 {[%clk 0:00:32]}  Bc5 {[%clk 0:00:25]} 40. f3 {[%clk 0:00:30]}  Bd4 {[%clk 0:00:24]} 41. Kd3 {[%clk 0:00:24]}  Qd6 {[%clk 0:00:21]} 42. Qg5+ {[%clk 0:00:22]}  Kg7 {[%clk 0:00:20]} 43. h5 {[%clk 0:00:21]}  Qa3+ {[%clk 0:00:20]} 44. Ke2 {[%clk 0:00:20]}  Qb2+ {[%clk 0:00:18]} 45. Kd1 {[%clk 0:00:20]}  Qa1+ {[%clk 0:00:17]} 46. Ke2 {[%clk 0:00:20]}  Qb2+ {[%clk 0:00:17]} 47. Kd1 {[%clk 0:00:21]}  Qa1+ {[%clk 0:00:14]} 48. Ke2 {[%clk 0:00:20]}  Qb2+ {[%clk 0:00:13]} 1/2-1/2


[Site "https://www.chess.com"]

[Event "Late Titled Tuesday Blitz February 8 2022"]
[White "Kamsky, Gata"]
[Black "Svane, Rasmus"]
[WhiteFideId "2000024"]
[BlackFideId "4657101"]
[WhiteElo "2645"]
[BlackElo "2645"]
[Result "0-1"]
[Round "05"]
[TimeControl "180+1"]
[Date "2022.02.08"]
[WhiteClock "0:00:42"]
[BlackClock "0:00:13"]

1. d4 {[%clk 0:03:00]}  d5 {[%clk 0:03:00]} 2. Bf4 {[%clk 0:02:59]}  e6 {[%clk 0:03:00]} 3. e3 {[%clk 0:02:59]}  Bd6 {[%clk 0:03:00]} 4. Nd2 {[%clk 0:02:54]}  Bxf4 {[%clk 0:02:45]} 5. exf4 {[%clk 0:02:54]}  Qd6 {[%clk 0:02:46]} 6. Qg4 {[%clk 0:02:46]}  g6 {[%clk 0:02:37]} 7. c3 {[%clk 0:02:43]}  c5 {[%clk 0:02:24]} 8. Ngf3 {[%clk 0:02:31]}  Nc6 {[%clk 0:02:17]} 9. dxc5 {[%clk 0:02:30]}  Qxc5 {[%clk 0:02:18]} 10. Qh4 {[%clk 0:02:21]}  Qe7 {[%clk 0:01:33]} 11. Qxe7+ {[%clk 0:02:15]}  Ngxe7 {[%clk 0:01:30]} 12. O-O-O {[%clk 0:02:13]}  f6 {[%clk 0:01:28]} 13. Bb5 {[%clk 0:02:10]}  Kf7 {[%clk 0:01:28]} 14. Rhe1 {[%clk 0:02:04]}  a6 {[%clk 0:01:25]} 15. Bxc6 {[%clk 0:02:04]}  Nxc6 {[%clk 0:01:15]} 16. Nb3 {[%clk 0:02:04]}  Re8 {[%clk 0:01:15]} 17. Nbd4 {[%clk 0:02:02]}  Bd7 {[%clk 0:01:13]} 18. b3 {[%clk 0:01:54]}  Rac8 {[%clk 0:01:10]} 19. Kb2 {[%clk 0:01:53]}  Nxd4 {[%clk 0:01:06]} 20. cxd4 {[%clk 0:01:51]}  h6 {[%clk 0:01:03]} 21. h4 {[%clk 0:01:51]}  h5 {[%clk 0:01:02]} 22. Rc1 {[%clk 0:01:48]}  Rxc1 {[%clk 0:00:56]} 23. Rxc1 {[%clk 0:01:46]}  Rc8 {[%clk 0:00:57]} 24. Rxc8 {[%clk 0:01:44]}  Bxc8 {[%clk 0:00:58]} 25. Kc3 {[%clk 0:01:37]}  Ke7 {[%clk 0:00:55]} 26. Ne1 {[%clk 0:01:36]}  Kd6 {[%clk 0:00:54]} 27. g3 {[%clk 0:01:34]}  b6 {[%clk 0:00:53]} 28. a3 {[%clk 0:01:30]}  a5 {[%clk 0:00:53]} 29. Kd2 {[%clk 0:01:28]}  Ba6 {[%clk 0:00:50]} 30. Ke3 {[%clk 0:01:28]}  Bf1 {[%clk 0:00:44]} 31. Nf3 {[%clk 0:01:26]}  Bg2 {[%clk 0:00:40]} 32. Nd2 {[%clk 0:01:25]}  Bh3 {[%clk 0:00:40]} 33. Nb1 {[%clk 0:01:20]}  Bf5 {[%clk 0:00:38]} 34. Nc3 {[%clk 0:01:20]}  Kc6 {[%clk 0:00:37]} 35. f3 {[%clk 0:01:17]}  Bh3 {[%clk 0:00:36]} 36. Kf2 {[%clk 0:01:14]}  Bf5 {[%clk 0:00:36]} 37. Ke3 {[%clk 0:01:11]}  Bh3 {[%clk 0:00:36]} 38. Kd2 {[%clk 0:01:08]}  Bf5 {[%clk 0:00:36]} 39. Nd1 {[%clk 0:01:08]}  Kd6 {[%clk 0:00:35]} 40. Ne3 {[%clk 0:01:04]}  Bh3 {[%clk 0:00:34]} 41. g4 {[%clk 0:00:56]}  hxg4 {[%clk 0:00:19]} 42. fxg4 {[%clk 0:00:56]}  e5 {[%clk 0:00:17]} 43. fxe5+ {[%clk 0:00:50]}  fxe5 {[%clk 0:00:18]} 44. Kd3 {[%clk 0:00:49]}  Ke6 {[%clk 0:00:17]} 45. h5 {[%clk 0:00:43]}  gxh5 {[%clk 0:00:15]} 46. gxh5 {[%clk 0:00:43]}  Bf5+ {[%clk 0:00:13]} 47. Nxf5 {[%clk 0:00:42]}  e4+ {[%clk 0:00:13]} 0-1


[Site "https://www.chess.com"]

[Event "Late Titled Tuesday Blitz February 8 2022"]
[White "Kanyamarala, Tarun"]
[Black "Hess, Robert"]
[WhiteFideId "45004714"]
[BlackFideId "2022036"]
[WhiteElo "2144"]
[BlackElo "2557"]
[Result "1-0"]
[Round "05"]
[TimeControl "180+1"]
[Date "2022.02.09"]
[WhiteClock "0:01:14"]
[BlackClock "0:00:08"]

1. d4 {[%clk 0:03:00]}  g6 {[%clk 0:03:00]} 2. c4 {[%clk 0:03:01]}  Bg7 {[%clk 0:03:01]} 3. Nc3 {[%clk 0:03:01]}  c5 {[%clk 0:02:57]} 4. dxc5 {[%clk 0:03:00]}  Bxc3+ {[%clk 0:02:56]} 5. bxc3 {[%clk 0:03:01]}  Qa5 {[%clk 0:02:56]} 6. Nf3 {[%clk 0:02:53]}  Nf6 {[%clk 0:02:53]} 7. g3 {[%clk 0:02:46]}  Nc6 {[%clk 0:02:36]} 8. Bg2 {[%clk 0:02:40]}  Qxc5 {[%clk 0:02:34]} 9. O-O {[%clk 0:02:19]}  Qxc4 {[%clk 0:02:13]} 10. Bg5 {[%clk 0:02:18]}  O-O {[%clk 0:01:50]} 11. Bxf6 {[%clk 0:02:04]}  exf6 {[%clk 0:01:50]} 12. Nd2 {[%clk 0:02:04]}  Qe6 {[%clk 0:01:04]} 13. Ne4 {[%clk 0:02:01]}  f5 {[%clk 0:01:01]} 14. Nd6 {[%clk 0:01:59]}  Kg7 {[%clk 0:00:48]} 15. Re1 {[%clk 0:01:49]}  b6 {[%clk 0:00:40]} 16. e4 {[%clk 0:01:47]}  f4 {[%clk 0:00:40]} 17. gxf4 {[%clk 0:01:44]}  Ba6 {[%clk 0:00:37]} 18. e5 {[%clk 0:01:34]}  Rad8 {[%clk 0:00:35]} 19. Bd5 {[%clk 0:01:26]}  Qh3 {[%clk 0:00:25]} 20. Re3 {[%clk 0:01:20]}  Qh4 {[%clk 0:00:23]} 21. Qa4 {[%clk 0:01:16]}  Na5 {[%clk 0:00:14]} 22. Rg3 {[%clk 0:01:15]}  Be2 {[%clk 0:00:08]} 23. Nf5+ {[%clk 0:01:14]} 1-0


[Site "https://www.chess.com"]

[Event "Late Titled Tuesday Blitz February 8 2022"]
[White "Kirillov, Dmitry"]
[Black "Haussernot, Cecile"]
[WhiteFideId "34180572"]
[BlackFideId "601632"]
[WhiteElo "2076"]
[BlackElo "2288"]
[Result "1-0"]
[Round "05"]
[TimeControl "180+1"]
[Date "2022.02.09"]
[WhiteClock "0:00:11"]
[BlackClock "0:00:48"]

1. d4 {[%clk 0:03:00]}  Nf6 {[%clk 0:02:42]} 2. c4 {[%clk 0:03:00]}  e6 {[%clk 0:02:40]} 3. Nf3 {[%clk 0:03:00]}  c5 {[%clk 0:02:40]} 4. e3 {[%clk 0:03:00]}  cxd4 {[%clk 0:02:39]} 5. exd4 {[%clk 0:03:01]}  b6 {[%clk 0:02:37]} 6. Nc3 {[%clk 0:03:01]}  Bb7 {[%clk 0:02:38]} 7. Bd3 {[%clk 0:03:01]}  Bb4 {[%clk 0:02:36]} 8. O-O {[%clk 0:02:55]}  O-O {[%clk 0:02:36]} 9. Qe2 {[%clk 0:02:46]}  d5 {[%clk 0:02:33]} 10. a3 {[%clk 0:02:29]}  Bxc3 {[%clk 0:02:26]} 11. bxc3 {[%clk 0:02:29]}  dxc4 {[%clk 0:02:26]} 12. Bxc4 {[%clk 0:02:30]}  Ne4 {[%clk 0:02:25]} 13. Bb2 {[%clk 0:02:12]}  Nd7 {[%clk 0:02:25]} 14. Bd3 {[%clk 0:02:10]}  Ndf6 {[%clk 0:02:25]} 15. c4 {[%clk 0:02:01]}  Rc8 {[%clk 0:02:22]} 16. Rad1 {[%clk 0:01:54]}  Qd7 {[%clk 0:02:13]} 17. h4 {[%clk 0:01:48]}  Qa4 {[%clk 0:02:10]} 18. Ng5 {[%clk 0:01:38]}  Nxg5 {[%clk 0:02:04]} 19. hxg5 {[%clk 0:01:39]}  Ne8 {[%clk 0:01:59]} 20. d5 {[%clk 0:01:31]}  exd5 {[%clk 0:01:55]} 21. Qg4 {[%clk 0:01:10]}  dxc4 {[%clk 0:01:48]} 22. Be4 {[%clk 0:00:52]}  Bxe4 {[%clk 0:01:19]} 23. Qxc8 {[%clk 0:00:45]}  Nd6 {[%clk 0:01:19]} 24. Qc7 {[%clk 0:00:31]}  Nb5 {[%clk 0:01:19]} 25. Qe5 {[%clk 0:00:30]}  c3 {[%clk 0:01:14]} 26. Bxc3 {[%clk 0:00:30]}  Nxc3 {[%clk 0:01:13]} 27. Qxc3 {[%clk 0:00:31]}  Qb5 {[%clk 0:01:10]} 28. Rd4 {[%clk 0:00:28]}  Bb7 {[%clk 0:01:06]} 29. Qe3 {[%clk 0:00:20]}  Qc6 {[%clk 0:01:02]} 30. f3 {[%clk 0:00:20]}  Qc5 {[%clk 0:01:01]} 31. Rfd1 {[%clk 0:00:20]}  g6 {[%clk 0:01:00]} 32. Kf2 {[%clk 0:00:17]}  a5 {[%clk 0:00:55]} 33. Rd8 {[%clk 0:00:16]}  Qc2+ {[%clk 0:00:55]} 34. Kg1 {[%clk 0:00:13]}  Qb2 {[%clk 0:00:48]} 35. Qe7 {[%clk 0:00:11]} 1-0


[Site "https://www.chess.com"]

[Event "Late Titled Tuesday Blitz February 8 2022"]
[White "Kubatko, Ivan"]
[Black "Djokic, Mihailo"]
[WhiteFideId "24111473"]
[BlackFideId "976440"]
[WhiteElo "2285"]
[BlackElo "2008"]
[Result "0-1"]
[Round "05"]
[TimeControl "180+1"]
[Date "2022.02.09"]
[WhiteClock "0:02:04"]
[BlackClock "0:02:13"]

1. e4 {[%clk 0:03:00]}  e6 {[%clk 0:02:58]} 2. d4 {[%clk 0:03:00]}  d5 {[%clk 0:02:58]} 3. exd5 {[%clk 0:03:01]}  exd5 {[%clk 0:02:58]} 4. Nf3 {[%clk 0:03:01]}  Bd6 {[%clk 0:02:57]} 5. c4 {[%clk 0:03:01]}  dxc4 {[%clk 0:02:57]} 6. Bxc4 {[%clk 0:03:01]}  Nf6 {[%clk 0:02:56]} 7. O-O {[%clk 0:02:55]}  O-O {[%clk 0:02:56]} 8. Nc3 {[%clk 0:02:56]}  a6 {[%clk 0:02:55]} 9. Ne5 {[%clk 0:02:54]}  Nbd7 {[%clk 0:02:53]} 10. f4 {[%clk 0:02:48]}  Nb6 {[%clk 0:02:46]} 11. Bb3 {[%clk 0:02:47]}  Bf5 {[%clk 0:02:44]} 12. Be3 {[%clk 0:02:41]}  c6 {[%clk 0:02:28]} 13. Qf3 {[%clk 0:02:37]}  Nbd5 {[%clk 0:02:23]} 14. Nxd5 {[%clk 0:02:16]}  cxd5 {[%clk 0:02:22]} 15. Bxd5 {[%clk 0:02:16]}  Bxe5 {[%clk 0:02:14]} 16. fxe5 {[%clk 0:02:04]}  Nxd5 {[%clk 0:02:13]} 0-1


[Site "https://www.chess.com"]